bitfinex-derivatives/quotes_ETHF0:USTF0_20251012
["timestamp","ask_amount","ask_price","bid_price","bid_amount"]
[1760233126439,0.1358,3725.0,3724.7,0.48281]
[1760233126440,0.6166861,3724.9,3724.7,0.48281]
[1760233126640,0.339,3724.8,3723.6,1.20739]
[1760233126837,0.4748,3724.5,3724.4,0.48285]
[1760233127232,0.339,3724.4,3723.4,1.20747]
[1760233127443,0.339,3723.9,3723.6,0.48295]
[1760233127634,0.339,3723.9,3723.7,0.48294]
[1760233127837,0.339,3723.9,3723.8,0.48293]
[1760233129543,0.4748,3724.5,3724.4,0.48286]
[1760233130434,0.339,3724.5,3724.4,0.48286]
[1760233130938,0.4748,3724.5,3724.4,0.48286]
[1760233131540,0.4748,3724.5,3723.2,1.4051405]
[1760233131541,0.48286,3724.4,3723.2,1.4051405]
[1760233131742,0.1358,3724.0,3723.9,0.48292]
[1760233131943,0.4748,3724.0,3723.9,0.48292]
[1760233133141,0.339,3723.9,3723.7,0.48294]
[1760233133347,0.339,3723.9,3723.8,0.48293]
[1760233133841,0.1358,3724.0,3722.9,2.6127505]
[1760233133842,0.1358,3724.0,3723.6,0.48295]
[1760233134037,0.339,3723.9,3723.6,0.48295]
[1760233134236,0.339,3723.9,3723.2,1.20754]
[1760233134435,0.4748,3724.0,3723.9,0.48292]
[1760233135143,0.339,3723.9,3722.8,2.639652]
[1760233135744,0.339,3723.9,3723.7,0.48294]
[1760233135943,0.1358,3724.0,3723.7,0.48294]
[1760233136243,0.339,3723.9,3723.8,0.48293]
[1760233136639,0.339,3723.9,3723.6,0.48296]
[1760233136841,0.339,3723.4,3723.1,0.00332972]
[1760233137839,0.1358,3723.5,3723.4,0.48299]
[1760233138039,0.75118728,3723.5,3723.2,0.48301]
[1760233138242,0.1358,3723.5,3723.2,0.48301]
[1760233138439,0.339,3723.4,3723.3,0.48299]
[1760233140241,0.4748,3724.0,3723.9,0.48292]
[1760233140541,0.339,3723.4,3723.1,0.00332972]
[1760233140846,0.339,3723.4,3723.1,0.48634972]
[1760233141142,0.339,3723.4,3723.3,0.48299]
[1760233141342,0.339,3723.4,3723.1,0.00332972]
[1760233141545,0.1358,3723.0,3722.8,0.0268615]
[1760233141747,0.339,3722.9,3722.8,0.0268615]
[1760233142747,0.34170108,3722.9,3722.8,0.02907962]
[1760233146348,0.00270108,3722.9,3722.8,5.02907962]
[1760233146649,0.1358,3724.0,3723.9,0.48292]
[1760233146847,0.1358,3724.5,3724.4,0.48286]
[1760233147050,0.135,3725.0,3724.9,0.48279]
[1760233147244,0.3593,3724.9,3723.9,0.183]
[1760233147450,0.3593,3723.9,3723.7,0.48294]
[1760233147646,0.61785,3724.5,3722.8,0.21207962]
[1760233147647,0.4943,3724.5,3724.4,0.48286]
[1760233148249,0.135,3724.5,3724.0,0.48291]
[1760233148449,0.135,3724.5,3723.4,0.183]
[1760233148450,0.4943,3724.5,3724.4,0.48286]
[1760233148650,0.4943,3724.5,3724.2,0.48288]
[1760233148845,0.135,3724.5,3724.2,0.48288]
[1760233149152,0.135,3724.5,3724.0,0.4829]
[1760233149453,0.3593,3723.9,3723.3,1.4051405]
[1760233149648,0.3593,3723.4,3723.3,0.483]
[1760233150646,0.48305,3722.9,3722.8,0.37837012]
[1760233150852,9.865,3723.2,3722.2,0.3674]
[1760233151050,9.865,3723.2,3720.6,3.37006606]
[1760233151051,0.48321,3721.7,3721.0,0.1341]
[1760233151244,0.61495302,3721.6,3721.5,0.1341]
[1760233151441,0.48329,3721.2,3721.0,0.1341]
[1760233151643,0.48329,3721.2,3720.5,0.1341]
[1760233151644,0.48335,3720.6,3720.5,0.1341]
[1760233151852,1.15995315,3720.6,3720.5,0.13600156]
[1760233152053,0.48342,3720.1,3720.0,0.1341]
[1760233152550,0.48344,3719.9,3719.5,0.1341]
[1760233153150,0.48344,3719.9,3719.5,0.13671713]
[1760233153355,0.48344,3719.9,3719.6,0.3674]
[1760233153547,3.51098697,3720.1,3719.6,0.3674]
[1760233153752,3.51098697,3720.1,3719.5,0.13671713]
[1760233153753,0.48347,3719.7,3719.5,0.13671713]
[1760233154052,3.56487618,3719.6,3719.5,0.13671713]
[1760233154250,0.48355,3719.1,3719.0,0.5015]
[1760233154754,3.96231816,3719.1,3719.0,0.1341]
[1760233154969,8.96231816,3719.1,3719.0,0.1341]
[1760233155350,8.96231816,3719.1,3719.0,0.13749048]
[1760233155550,0.48367,3718.2,3718.0,0.1341]
[1760233155758,1.20891,3719.0,3717.4,0.3674]
[1760233155759,0.48374,3717.7,3717.4,0.3674]
[1760233156055,0.4837,3718.0,3717.4,0.3674]
[1760233156249,3.49706104,3717.6,3717.0,0.1341]
[1760233156450,0.48379,3717.3,3717.0,0.1341]
[1760233156751,0.48379,3717.3,3716.6,0.3674]
[1760233156752,0.4838,3717.2,3716.6,0.3674]
[1760233156949,3.92004323,3717.2,3716.6,0.3674]
[1760233157148,0.48383,3716.9,3716.6,0.3674]
[1760233157348,0.48386,3716.7,3716.5,0.1341]
[1760233157560,0.00254435,3717.6,3716.5,0.1341]
[1760233157561,0.48387,3716.6,3716.5,0.1341]
[1760233157760,4.01934169,3716.6,3716.5,0.13609004]
[1760233158054,3.53547169,3717.5,3716.5,0.13609004]
[1760233158055,3.53547169,3717.1,3716.5,0.13609004]
[1760233158253,0.48378,3717.3,3716.5,0.13609004]
[1760233158657,3.50318378,3717.2,3716.5,0.13609004]
[1760233158854,3.50318378,3717.2,3717.0,0.1341]
[1760233159154,0.00254435,3717.6,3717.0,0.1341]
[1760233159356,0.00254435,3717.6,3717.1,0.3674]
[1760233159554,0.00254435,3717.6,3717.0,0.1341]
[1760233159555,3.50318378,3717.5,3717.0,0.1341]
[1760233159753,3.50318378,3717.5,3717.1,0.3674]
[1760233159955,0.00254435,3717.6,3717.5,0.48375]
[1760233160154,0.00254435,3717.6,3717.3,0.3674]
[1760233160457,0.00254435,3717.6,3717.3,0.85117]
[1760233160762,0.00254435,3717.6,3717.5,0.85115]
[1760233161059,9.869,3718.0,3717.9,0.4837]
[1760233161250,0.04681916,3719.1,3718.8,0.1341]
[1760233161458,0.04681916,3719.1,3718.9,0.3674]
[1760233161662,3.41667357,3719.0,3718.9,0.3674]
[1760233162162,3.4197953,3719.0,3718.9,0.3674]
[1760233163762,0.00312173,3719.0,3718.9,0.3674]
[1760233164067,3.93312274,3719.0,3718.8,0.1341]
[1760233165157,3.93312274,3719.0,3718.8,0.5015]
[1760233165663,0.00312173,3719.0,3718.9,0.3674]
[1760233166157,8.44473427,3719.0,3718.5,0.1341]
[1760233166357,0.48365,3718.3,3718.2,0.1341]
[1760233166863,4.05914301,3718.3,3718.2,0.1341]
[1760233167165,0.48371,3717.9,3717.6,0.1341]
[1760233167460,0.48371,3717.9,3717.7,0.3674]
[1760233167667,3.57549301,3717.8,3717.7,0.3674]
[1760233169564,0.48373,3717.7,3717.6,0.1341]
[1760233169763,5.0,3717.7,3717.1,0.3674]
[1760233169969,3.41605877,3717.7,3717.1,0.3674]
[1760233170163,0.48376,3717.5,3717.0,0.1341]
[1760233170468,3.41605877,3717.4,3717.0,0.1341]
[1760233170767,0.48373,3717.8,3717.5,0.1341]
[1760233171062,0.48373,3717.8,3717.6,0.3674]
[1760233171767,3.908522,3717.7,3717.5,0.1341]
[1760233171968,3.908522,3717.7,3717.5,0.5015]
[1760233172164,0.48372,3717.8,3717.5,0.1341]
[1760233172369,3.424782,3717.6,3717.1,0.3674]
[1760233172662,3.424782,3717.7,3717.1,0.3674]
[1760233172867,0.48381,3717.1,3717.0,0.1341]
[1760233173064,0.96025809,3718.5,3716.6,0.3674]
[1760233173065,3.46440653,3718.1,3716.6,0.3674]
[1760233173260,0.48394,3716.1,3716.0,0.1341]
[1760233173768,0.484,3715.7,3715.5,0.1341]
[1760233173965,0.48405,3715.3,3715.0,0.5015]
[1760233174166,0.48719667,3715.3,3715.0,0.50445004]
[1760233174369,0.00314667,3715.3,3715.1,0.3674]
[1760233174568,0.00314667,3715.3,3715.0,0.13705004]
[1760233175063,0.00314667,3715.3,3715.1,0.3514]
[1760233175267,0.00314667,3715.3,3715.1,0.83546]
[1760233175468,0.00314667,3715.3,3715.2,0.3514]
[1760233176670,0.48388,3716.6,3715.3,0.3514]
[1760233176970,9.879,3717.1,3715.6,0.3514]
[1760233177263,0.48391,3716.4,3715.6,0.3514]
[1760233177477,0.48394,3716.1,3715.5,0.4983]
[1760233177659,0.48730576,3716.1,3716.0,0.1469]
[1760233177866,0.00336576,3716.1,3716.0,0.4983]
[1760233178663,9.879,3717.1,3717.0,0.4983]
[1760233179069,0.21381316,3718.3,3718.2,0.3514]
[1760233179070,1.17407125,3718.3,3718.2,0.3514]
[1760233179361,0.21381316,3718.3,3718.2,0.3514]
[1760233179563,0.2168186,3718.3,3718.2,0.00331133]
[1760233179761,0.7039953,3718.3,3718.2,0.00331133]
[1760233179968,0.48368,3718.1,3718.0,0.1469]
[1760233180157,1.43710702,3718.1,3718.0,0.1469]
[1760233180364,5.59674619,3718.1,3718.0,0.1469]
[1760233180565,0.70098986,3718.1,3718.0,0.4983]
[1760233180767,1.65441688,3718.1,3718.0,0.4983]
[1760233180962,1.65441688,3718.1,3718.0,0.50158408]
[1760233181271,0.48369,3718.0,3717.5,0.5123]
[1760233181571,9.2737648,3718.1,3717.0,0.1469]
[1760233181572,1.92059988,3717.7,3717.0,0.1469]
[1760233181867,0.95803828,3717.3,3717.2,0.84919]
[1760233182067,0.70098986,3717.3,3717.2,0.48379]
[1760233182272,1.43685988,3718.5,3718.0,0.1462]
[1760233182571,0.70142362,3718.2,3718.0,0.62988]
[1760233182758,1.43685988,3718.5,3718.0,0.62988]
[1760233182759,0.70143026,3718.1,3718.0,0.62988]
[1760233182964,0.70143026,3718.1,3718.0,0.99528]
[1760233183171,0.70143026,3718.1,3718.0,5.99528]
[1760233183664,1.43685988,3719.0,3718.2,0.84906]
[1760233184964,0.04681916,3719.1,3718.2,0.84906]
[1760233184965,1.43685988,3718.9,3718.2,0.84906]
[1760233185271,0.04681916,3719.1,3718.2,5.84906]
[1760233185774,1.43685988,3719.4,3718.2,5.84906]
[1760233186966,1.92037988,3719.4,3718.2,5.84906]
[1760233187173,1.43685988,3719.4,3718.2,0.84906]
[1760233187473,1.43685988,3719.4,3718.2,5.84906]
[1760233187772,1.92036988,3719.4,3718.2,5.84906]
[1760233188066,1.43685988,3719.5,3718.2,5.84906]
[1760233188270,1.43685988,3719.5,3719.2,0.3654]
[1760233188667,1.92035988,3719.5,3719.2,0.3654]
[1760233188971,1.43685988,3719.5,3719.1,0.48354]
[1760233189273,1.43996393,3719.5,3719.1,0.48354]
[1760233189459,1.43996393,3719.5,3719.2,0.3654]
[1760233189659,1.43996393,3719.5,3719.0,0.1462]
[1760233189862,1.43996393,3719.5,3719.1,0.48354]
[1760233190065,1.43996393,3719.5,3719.2,0.48352]
[1760233190266,0.00310405,3719.5,3719.2,0.48352]
[1760233190773,0.00310405,3719.5,3719.2,0.48353]
[1760233190970,0.00310405,3719.5,3719.4,0.84891]
[1760233191477,0.00310405,3719.5,3719.4,5.84891]
[1760233192277,4.05e-06,3719.5,3719.4,5.84891]
[1760233192568,1.43685988,3721.0,3720.9,0.3654]
[1760233192769,1.43685988,3721.2,3721.1,0.3654]
[1760233193272,1.43685988,3721.3,3721.1,0.3654]
[1760233193474,1.44011729,3721.3,3721.2,0.3654]
[1760233193668,0.00325741,3721.3,3721.2,0.3654]
[1760233194669,5.00325741,3721.3,3721.2,0.3654]
[1760233194875,9.93963467,3721.3,3720.6,0.3654]
[1760233195073,3.98604479,3721.3,3720.6,0.3654]
[1760233195572,0.69800352,3721.2,3720.6,0.3654]
[1760233195773,0.69800352,3721.1,3721.0,0.5116]
[1760233195977,0.69800352,3721.1,3721.0,0.1462]
[1760233196473,0.69800352,3721.1,3721.0,0.5116]
[1760233198278,0.00325741,3721.3,3721.0,0.1462]
[1760233198476,0.69684382,3721.2,3721.1,0.3654]
[1760233199077,0.00325741,3721.3,3721.1,0.3654]
[1760233199581,0.00325741,3721.3,3721.0,0.1462]
[1760233199991,0.00325741,3721.3,3721.2,0.3654]
[1760233201382,9.22615155,3721.3,3721.0,0.1462]
[1760233201571,0.48329,3721.1,3721.0,0.5116]
[1760233201776,3.52987467,3721.3,3721.0,0.1462]
[1760233202077,0.48328,3721.2,3721.1,0.3654]
[1760233202275,5.48328,3721.2,3721.0,0.1462]
[1760233202584,8.97162531,3721.2,3721.0,0.1462]
[1760233202773,0.6961834,3721.1,3721.0,0.1462]
[1760233202972,0.6961834,3721.1,3720.5,0.14849967]
[1760233202973,0.48334,3720.7,3720.5,0.14849967]
[1760233203376,0.48328,3721.2,3720.0,0.1462]
[1760233203377,0.4834,3720.2,3720.0,0.1462]
[1760233203984,1.20821,3721.2,3720.0,0.1462]
[1760233203985,1.44011729,3721.3,3720.0,0.1462]
[1760233204185,0.6964115,3721.2,3721.1,0.3654]
[1760233204381,3.51736431,3721.2,3721.1,0.36757309]
[1760233204780,0.00325741,3721.3,3721.2,0.82257]
[1760233205477,0.022,3722.8,3722.5,0.1394]
[1760233205681,0.022,3722.8,3722.7,0.3393]
[1760233206484,0.48309,3722.6,3722.5,0.1394]
[1760233206880,9.26187129,3722.6,3721.6,0.1999]
[1760233207082,0.69777532,3722.5,3721.6,0.1999]
[1760233207381,0.48322,3721.6,3721.0,0.1462]
[1760233207583,0.48326,3721.3,3721.0,0.1462]
[1760233207798,0.69863599,3721.2,3720.5,0.1394]
[1760233208086,0.48335,3720.7,3720.5,0.1394]
[1760233208590,0.48339,3720.3,3720.0,0.1394]
[1760233208787,0.69990846,3720.2,3720.0,0.14191097]
[1760233209083,0.48342,3720.1,3720.0,0.14191097]
[1760233209386,0.70218064,3720.1,3720.0,0.48121097]
[1760233209586,0.00227218,3720.1,3720.0,0.48121097]
[1760233209781,0.00227218,3720.1,3720.0,5.48121097]
[1760233210280,0.00227218,3720.1,3720.0,0.00251097]
[1760233210682,0.00227218,3720.1,3720.0,0.48121097]
[1760233211380,0.70322516,3720.1,3720.0,0.48121097]
[1760233211782,0.00227218,3720.1,3720.0,0.96464097]
[1760233211987,0.00227218,3720.1,3720.0,0.48121097]
[1760233212289,0.00227218,3720.1,3720.0,0.00251097]
[1760233212290,1.18758921,3720.1,3720.0,0.00251097]
[1760233212781,1.18758921,3720.1,3720.0,0.48121097]
[1760233212782,4.24947652,3720.1,3720.0,0.48121097]
[1760233212977,0.70416921,3720.1,3720.0,0.48121097]
[1760233214285,0.70416921,3720.1,3720.0,0.96464097]
[1760233214286,0.00227218,3720.1,3720.0,0.96464097]
[1760233215189,0.00227218,3720.1,3720.0,5.96464097]
[1760233216381,0.00227218,3720.1,3720.0,0.48121097]
[1760233216584,0.70536722,3720.1,3720.0,0.14191097]
[1760233217191,9.23514373,3720.1,3719.5,0.1394]
[1760233217393,0.70309504,3720.0,3719.5,0.4787]
[1760233217684,0.48348,3719.6,3719.5,0.1394]
[1760233217885,0.48356,3719.1,3718.5,0.4787]
[1760233218080,0.70309504,3719.0,3718.5,0.1394]
[1760233218287,0.48361,3718.7,3718.5,0.1422221]
[1760233218484,0.70343396,3718.6,3718.5,0.1422221]
[1760233218686,4.25749141,3718.6,3718.5,0.0028221]
[1760233219786,5.21907332,3718.6,3718.5,0.0028221]
[1760233220293,0.70343396,3718.6,3718.5,0.4815221]
[1760233220686,0.96158191,3719.2,3718.5,0.4815221]
[1760233220988,3.50166401,3719.0,3718.5,0.4815221]
[1760233221189,3.50166401,3719.0,3718.6,0.3393]
[1760233221382,0.48348,3719.7,3719.5,0.1394]
[1760233221582,0.70237982,3719.6,3719.5,0.1394]
[1760233221893,3.55664644,3719.7,3719.5,0.4787]
[1760233222093,0.48341,3720.2,3719.5,0.1394]
[1760233222290,4.55600335,3721.2,3719.5,0.1394]
[1760233222291,0.70217765,3720.0,3719.7,0.48346]
[1760233222498,0.70217765,3720.0,3718.5,0.1422221]
[1760233222499,1.43685988,3719.8,3718.5,0.1422221]
[1760233222698,0.48356,3719.1,3718.5,0.1422221]
[1760233222881,0.70047289,3719.0,3718.5,0.1422221]
[1760233223088,0.95988252,3719.7,3718.7,0.48359]
[1760233223286,0.48352,3719.3,3718.6,0.4836]
[1760233223490,0.70036198,3719.2,3718.8,0.48358]
[1760233223693,0.48349,3719.6,3719.0,0.1394]
[1760233223896,0.70025922,3719.5,3719.0,0.1394]
[1760233224189,0.70025922,3719.4,3719.0,0.1394]
[1760233224496,0.70025922,3719.4,3719.1,0.3393]
[1760233224690,0.70025922,3719.4,3719.0,0.1394]
[1760233224885,3.51711786,3719.3,3718.5,0.4815221]
[1760233225189,0.70025922,3719.2,3718.5,0.4815221]
[1760233225494,0.70025922,3719.2,3718.5,0.9651421]
[1760233225495,1.18379922,3719.2,3718.5,0.9651421]
[1760233225795,0.70025922,3719.1,3718.5,0.4815221]
[1760233225993,1.18382922,3719.0,3718.5,0.1422221]
[1760233226288,0.48357,3719.0,3718.5,0.1422221]
[1760233226482,0.48357,3719.0,3718.6,0.3393]
[1760233226884,0.95988252,3719.7,3718.6,0.3393]
[1760233227089,0.48349,3719.5,3719.0,0.1394]
[1760233227286,0.48349,3719.5,3718.5,0.1422221]
[1760233227287,0.48352,3719.4,3718.7,0.3393]
[1760233227484,0.48354,3719.2,3718.7,0.3393]
[1760233227688,0.70004802,3719.1,3718.5,0.1422221]
[1760233227883,0.48354,3719.2,3718.6,0.3393]
[1760233228084,0.48371,3717.9,3717.5,0.1394]
[1760233228292,0.48373,3717.8,3717.5,0.1394]
[1760233228498,0.48377,3717.5,3717.2,0.3393]
[1760233228893,0.48377,3717.5,3717.1,0.3393]
[1760233229089,0.48377,3717.5,3717.1,0.34141919]
[1760233229298,0.48378,3717.4,3717.2,0.3393]
[1760233229497,0.48677995,3717.4,3717.2,0.3393]
[1760233229988,0.48379,3717.2,3717.1,0.00211919]
[1760233231094,3.52428991,3717.3,3717.1,0.00211919]
[1760233231293,3.52428991,3717.3,3717.1,0.34141919]
[1760233232193,3.52428991,3717.3,3717.2,0.3393]
[1760233232394,0.00299995,3717.4,3717.3,0.82308]
[1760233232595,0.00299995,3717.4,3717.3,0.3393]
[1760233232998,0.00299995,3717.4,3717.1,0.00211919]
[1760233233188,0.00299995,3717.4,3717.1,0.34141919]
[1760233233394,0.00299995,3717.4,3717.2,0.3393]
[1760233233599,0.00299995,3717.4,3717.1,0.00211919]
[1760233234195,0.00299995,3717.4,3717.2,0.3393]
[1760233234392,0.48676995,3717.4,3717.2,0.3393]
[1760233234802,0.48379,3717.3,3717.1,0.00211919]
[1760233234993,9.06017187,3717.3,3716.1,0.3556]
[1760233235198,0.48388,3716.6,3716.0,0.1394]
[1760233235394,3.57638187,3717.3,3716.0,0.1394]
[1760233235395,0.48385,3716.8,3716.0,0.1394]
[1760233235698,0.48388,3716.6,3716.0,0.495]
[1760233235896,3.57638187,3716.7,3716.0,0.495]
[1760233236097,0.48393,3716.2,3716.0,0.00299853]
[1760233236501,3.42082435,3716.1,3716.0,0.00299853]
[1760233236999,0.48401,3715.6,3715.0,0.142]
[1760233237198,0.48406,3715.2,3714.6,0.3556]
[1760233237389,1.20989,3716.0,3714.0,0.142]
[1760233237390,0.48409,3715.0,3714.0,0.98181]
[1760233237789,3.4525668,3715.1,3714.2,0.48418]
[1760233237993,0.48406,3715.2,3714.2,0.48418]
[1760233237994,0.48406,3715.2,3714.3,0.3556]
[1760233238193,3.51486467,3715.1,3714.3,0.83976]
[1760233238498,9.88,3716.2,3714.7,0.3556]
[1760233238703,3.12265049,3716.9,3714.5,0.142]
[1760233238704,0.69787421,3716.1,3715.9,0.48395]
[1760233238896,0.95988252,3717.1,3716.4,0.3556]
[1760233239098,1.43985983,3717.4,3716.0,0.142]
[1760233239099,3.5411632,3717.2,3716.0,0.142]
[1760233239300,3.5411632,3717.0,3716.1,0.3556]
[1760233239595,0.69754004,3716.9,3716.1,0.3556]
[1760233239896,3.90653875,3717.0,3716.1,0.3556]
[1760233240094,3.42270875,3716.8,3716.3,0.4839]
[1760233240301,0.48383,3717.0,3715.8,0.3556]
[1760233240498,3.42270875,3716.9,3715.8,0.3556]
[1760233240701,0.4838,3717.2,3715.8,0.3556]
[1760233240896,1.18130423,3717.1,3716.1,0.48392]
[1760233241100,3.52958289,3716.9,3716.1,0.48392]
[1760233241303,0.48383,3717.0,3716.1,0.48392]
[1760233241499,4.01341289,3717.0,3716.1,0.48392]
[1760233241802,3.52958289,3716.8,3716.1,0.48392]
[1760233242004,0.48677995,3717.4,3716.5,0.48388]
[1760233242304,3.54741744,3716.9,3716.6,0.3447]
[1760233242497,4.03120744,3717.3,3716.6,0.3447]
[1760233242703,1.18132942,3717.2,3716.6,0.3447]
[1760233243003,3.53172671,3717.2,3716.1,0.3447]
[1760233243195,1.20956,3717.0,3715.5,0.4867]
[1760233243395,0.48391,3716.3,3715.5,0.4867]
[1760233243593,0.48393,3716.2,3715.5,0.4867]
[1760233243893,3.53172671,3716.9,3716.1,0.3447]
[1760233244097,0.69769133,3716.8,3716.7,0.3447]
[1760233244300,0.00299995,3717.4,3716.7,0.34665271]
[1760233244500,0.00299995,3717.4,3716.0,0.1335]
[1760233244501,0.6977673,3717.3,3716.0,0.1335]
[1760233244701,0.48386,3716.7,3715.7,0.3447]
[1760233244892,0.48384,3716.9,3715.8,0.48398]
[1760233245098,0.69790435,3716.8,3715.8,0.48398]
[1760233245298,0.69821826,3716.7,3715.8,0.48398]
[1760233245507,3.54936722,3716.8,3716.2,0.48392]
[1760233245702,0.48382,3717.1,3716.2,0.48392]
[1760233245904,4.74274146,3717.0,3716.0,0.4782]
[1760233246108,0.69818709,3716.9,3716.0,0.4782]
[1760233246295,0.69818709,3716.8,3716.0,0.96214]
[1760233246500,0.69818709,3716.7,3716.0,0.96214]
[1760233246999,0.00299995,3717.4,3717.3,0.3447]
[1760233247408,0.00299995,3717.4,3717.3,5.3447]
[1760233248112,0.00299995,3717.4,3717.3,0.3447]
[1760233248302,0.00299995,3717.4,3717.3,5.3447]
[1760233249107,9.95e-06,3717.4,3717.3,5.3447]
[1760233249307,9.881,3718.5,3717.5,0.1335]
[1760233249502,9.881,3718.5,3718.2,0.48365]
[1760233249702,9.881,3718.5,3718.3,0.3447]
[1760233249903,9.881,3718.5,3718.1,0.3447]
[1760233250211,9.88288783,3718.5,3718.4,0.3447]
[1760233250415,10.5818061,3718.5,3718.4,0.3447]
[1760233250910,10.5818061,3718.5,3718.0,0.1335]
[1760233250911,15.5818061,3718.5,3718.0,0.1335]
[1760233251099,0.69891827,3718.4,3717.6,0.82843]
[1760233251300,0.69891827,3718.4,3717.8,0.48372]
[1760233251601,0.69891827,3718.4,3718.1,0.3447]
[1760233252202,0.69891827,3718.4,3717.7,0.3447]
[1760233252609,0.69891827,3718.4,3717.7,0.82842]
[1760233253109,9.88288783,3718.5,3717.7,0.3447]
[1760233253809,9.88288783,3718.5,3717.5,0.1335]
[1760233253810,9.88288783,3718.5,3718.3,0.3447]
[1760233254006,9.88288783,3718.5,3718.2,0.48366]
[1760233254206,9.88288783,3718.5,3718.3,0.3447]
[1760233254410,9.88288783,3718.5,3718.2,0.48366]
[1760233254609,9.88288783,3718.5,3718.0,0.1335]
[1760233254803,0.48369,3718.0,3717.5,0.4782]
[1760233255003,0.48371,3717.9,3717.1,0.3447]
[1760233255204,0.69448516,3717.8,3717.1,0.3447]
[1760233255404,0.48374,3717.7,3717.1,0.3447]
[1760233255605,1.20914,3718.3,3717.1,0.3447]
[1760233255812,3.47156553,3717.7,3717.1,0.3447]
[1760233256015,0.69477831,3717.6,3717.1,0.3447]
[1760233256208,0.69477831,3717.6,3716.7,0.48386]
[1760233256209,0.48379,3717.3,3716.5,0.96208]
[1760233256414,0.48379,3717.3,3716.6,0.48387]
[1760233256811,0.48379,3717.3,3716.7,0.3447]
[1760233257113,0.48369,3718.0,3717.1,0.3447]
[1760233257310,0.48375,3717.6,3717.1,0.3447]
[1760233257514,0.69506337,3717.5,3717.1,0.3447]
[1760233257711,0.69506337,3717.5,3717.0,0.1335]
[1760233257907,0.48374,3717.7,3717.1,0.3447]
[1760233258225,0.48374,3717.7,3717.0,0.1335]
[1760233258226,1.17926156,3717.6,3717.0,0.4782]
[1760233258514,0.69551156,3717.5,3717.0,0.1335]
[1760233258916,0.69551156,3717.5,3717.2,0.48378]
[1760233259106,0.48372,3717.8,3717.1,0.3447]
[1760233259310,0.69566578,3717.7,3717.1,0.3447]
[1760233259510,0.69566578,3717.6,3717.0,0.96201]
[1760233259711,0.69566578,3717.5,3717.0,0.61731]
[1760233259915,0.48371,3717.9,3717.2,0.48379]
[1760233260112,0.69563973,3717.8,3717.2,0.48379]
[1760233260322,0.48374,3717.6,3717.0,0.1335]
[1760233260520,0.48378,3717.4,3717.0,0.4782]
[1760233261019,3.48872416,3717.6,3717.5,0.4782]
[1760233261217,0.69555072,3717.6,3717.5,0.4782]
[1760233261419,0.95988252,3718.4,3717.5,0.4782]
[1760233261616,0.69547882,3718.3,3717.5,0.1335]
[1760233261916,0.95988252,3719.0,3718.0,0.1335]
[1760233262118,0.95988252,3719.3,3718.4,0.3447]
[1760233262320,1.20888,3719.1,3718.0,0.1335]
[1760233262511,1.20888,3719.1,3717.5,0.1335]
[1760233262512,0.48372,3717.8,3717.5,0.1335]
[1760233262712,0.48372,3717.8,3717.5,0.4782]
[1760233262917,9.88288783,3718.5,3717.8,0.3447]
[1760233263218,0.48368,3718.1,3717.8,0.3447]
[1760233263524,0.48365,3718.3,3717.8,0.3447]
[1760233263713,0.6951913,3718.2,3717.8,0.3447]
[1760233263915,3.53154403,3718.4,3717.8,0.82841]
[1760233264110,9.88288783,3718.5,3718.2,0.3447]
[1760233264419,0.48366,3718.3,3718.0,0.4782]
[1760233264921,0.48367,3718.2,3717.5,0.4782]
[1760233265313,9.88288783,3718.5,3717.7,0.48372]
[1760233265314,10.36651783,3718.5,3717.7,0.48372]
[1760233265619,0.69506528,3718.4,3717.8,0.3447]
[1760233265820,9.88288783,3718.5,3718.1,0.3447]
[1760233266017,9.88288783,3718.5,3718.0,0.1377]
[1760233266219,9.88288783,3718.5,3718.1,0.3447]
[1760233266522,9.88288783,3718.5,3718.0,0.62138]
[1760233266819,9.88288783,3718.5,3718.2,0.3447]
[1760233267122,9.88288783,3718.5,3718.0,0.62138]
[1760233267620,9.88288783,3718.5,3718.1,0.3447]
[1760233267808,9.88288783,3718.5,3718.0,0.62138]
[1760233268111,9.88288783,3718.5,3718.0,0.1377]
[1760233268313,9.88288783,3718.5,3718.4,0.3447]
[1760233268713,9.88288783,3718.5,3718.0,0.1377]
[1760233269020,9.88288783,3718.5,3718.1,0.3447]
[1760233269415,0.48368,3718.1,3717.5,0.1335]
[1760233269618,0.48366,3718.3,3717.5,0.4782]
[1760233269922,9.88288783,3718.5,3718.2,0.48365]
[1760233270218,9.88288783,3718.5,3718.1,0.3447]
[1760233270422,9.88288783,3718.5,3718.2,0.3447]
[1760233270617,0.00188783,3718.5,3718.4,0.48364]
[1760233270922,9.881,3720.1,3719.7,0.48346]
[1760233271222,9.881,3720.1,3720.0,0.96583]
[1760233271422,1.44311252,3721.6,3720.6,0.3447]
[1760233271715,3.54185966,3721.1,3720.0,0.1377]
[1760233272019,0.48335,3720.7,3720.0,0.14050424]
[1760233272226,0.69565406,3720.6,3720.0,0.14050424]
[1760233272617,0.48339,3720.4,3720.0,0.00280424]
[1760233272927,4.21207065,3720.3,3720.0,0.00280424]
[1760233273223,3.51669454,3720.3,3720.0,0.00280424]
[1760233273723,4.00009454,3720.3,3720.0,0.00280424]
[1760233274018,4.00009454,3720.3,3719.5,0.4824]
[1760233274019,0.48346,3719.8,3719.0,0.4824]
[1760233274822,0.48342,3720.1,3719.0,0.4824]
[1760233275031,0.95988252,3720.6,3719.0,0.4824]
[1760233275032,0.48348,3719.6,3719.0,0.48440605]
[1760233275219,4.042167,3720.0,3719.2,0.3447]
[1760233275522,0.00257583,3721.1,3719.2,0.3447]
[1760233275523,0.48345,3719.9,3719.2,0.3447]
[1760233275717,4.042177,3719.9,3719.2,0.3447]
[1760233275915,0.48345,3719.9,3719.2,0.3447]
[1760233276119,0.48342,3720.1,3719.2,0.3447]
[1760233276320,0.69550282,3720.0,3719.2,0.3447]
[1760233276521,4.04900824,3720.0,3719.2,0.3447]
[1760233276822,0.48348,3719.7,3719.2,0.3447]
[1760233277023,0.48348,3719.7,3719.0,0.48440605]
[1760233277414,0.95988252,3720.6,3719.6,0.3447]